fUSD/lending_fUSD_20251029
["ID","MTS","AMOUNT","RATE_DAILY","PERIOD"]
[392647260,1761768998816,-500.0,0.0001471,2]
[392647261,1761768998825,-500.0,0.0001471,2]
[392647262,1761768998834,-500.0,0.00014899,2]
[392647263,1761768998846,-1994.258923,0.000149,2]
[392647264,1761768998856,-500.0,0.00014999,2]
[392647265,1761768998865,-311.24382611,0.00015,2]
[392647266,1761768998960,-500.0,0.0001471,2]
[392647267,1761768998971,-415.2792653,0.0001471,2]
[392647268,1761768998980,-216.1047315,0.00014999,2]
[392647269,1761769014660,2524.0,0.000175,3]
[392647270,1761769016863,1115.37388302,0.00014999,5]
[392647271,1761769016955,835.87562201,0.00014999,5]
[392647272,1761769032338,153.03,0.00013594,2]
[392647273,1761769215879,500.0,0.00031507,120]
[392647274,1761769364287,-500.0,0.00013613,2]
[392647275,1761769368952,-300.0,0.00013743,2]
[392647276,1761769379507,-250.0,0.00013773,2]
[392647277,1761769386664,-262.42913533,0.00013704,2]
[392647278,1761769391457,-300.0,0.00013883,2]
[392647279,1761769391479,-300.0,0.00013883,2]
[392647280,1761769401034,-273.08888902,0.00013903,2]
[392647281,1761769401057,-300.0,0.00013903,2]
[392647282,1761769402927,500.0,0.00026533,120]
[392647283,1761769403361,500.0,0.00028166,120]
[392647284,1761769403777,500.0,0.00029799,120]
[392647285,1761769404134,500.0,0.00031432,120]
[392647286,1761769507436,279.8478322,0.00013488,2]
[392647287,1761769507499,150.0,0.00013488,2]
[392647288,1761769512225,150.00000001,0.00013488,2]
[392647289,1761769512316,150.0,0.00013488,2]
[392647290,1761769514659,155.80232479,0.00013488,2]
[392647291,1761769527114,173.4848323,0.00013488,2]
[392647292,1761769527206,150.0,0.00013488,2]
[392647299,1761769616511,27004.02763791,0.000162,5]
[392647300,1761769616536,21003.00201933,0.000162,5]
[392647310,1761769765484,646.40251043,0.00031506,120]
[392647314,1761769831466,-426.34,0.0001368,2]
[392647315,1761769831475,-113.61972738,0.00013699,2]
[392647316,1761769831705,-366.83482507,0.00013699,2]
[392647317,1761769831717,-201.23544755,0.00013699,2]
[392647318,1761769831727,-166.38699748,0.00013723,2]
[392647319,1761769831739,-133.61300252,0.00013723,2]
[392647320,1761769831749,-300.0,0.00013723,2]
[392647321,1761769831760,-150.0,0.00013723,2]
[392647322,1761769831769,-160.88,0.00013753,2]
[392647323,1761769831779,-250.0,0.00013758,2]
[392647324,1761769831789,-250.0,0.00013817,2]
[392647325,1761769831799,-200.0,0.00013923,2]
[392647326,1761769831809,-3217.52,0.00013943,2]
[392647327,1761769831818,-400.0,0.00013989,2]
[392647328,1761769831828,-300.0,0.00013989,2]
[392647329,1761769831838,-1200.0,0.00013989,2]
[392647330,1761769831848,-197.0,0.00013989,2]
[392647331,1761769831857,-151.12861762,0.0001399,2]
[392647332,1761769831868,-1428.87580986,0.0001399,2]
[392647333,1761769831879,-814.82102388,0.0001399,2]
[392647334,1761769831890,-1053.03409589,0.0001399,2]
[392647335,1761769831901,-1732.7307497,0.0001399,2]
[392647336,1761769831915,-1118.96304471,0.0001399,2]
[392647337,1761769831960,-5210.83968382,0.0001399,2]
[392647338,1761769831976,-166.27,0.00014205,2]
[392647339,1761769831985,-221.53471527,0.00014566,2]
[392647340,1761769831995,-710.63,0.00014613,2]
[392647341,1761769832005,-892.67338722,0.00014659,2]
[392647342,1761769832015,-1000.0,0.000147,2]
[392647343,1761769832324,-150.0,0.00014718,2]
[392647344,1761769832334,-1314.0,0.00014719,2]
[392647345,1761769832344,-1593.0,0.00014719,2]
[392647346,1761769832353,-1270.0,0.00014719,2]
[392647347,1761769832363,-818.0,0.00014719,2]
[392647348,1761769832373,-2500.0,0.00014754,2]
[392647349,1761769832382,-480.9727,0.000148,2]
[392647350,1761769832391,-1000.0,0.000148,2]
[392647351,1761769832400,-1003.76973602,0.00014844,2]
[392647352,1761769832409,-151.0,0.00014845,2]
[392647353,1761769832418,-200.0,0.00014845,2]
[392647354,1761769832427,-151.0,0.00014845,2]
[392647355,1761769832441,-151.0,0.00014845,2]
[392647356,1761769832450,-151.0,0.00014845,2]
[392647357,1761769832459,-151.0,0.00014845,2]
[392647358,1761769832468,-270.93013338,0.00014845,2]
[392647359,1761769832477,-19.67003831,0.00014845,2]
[392647360,1761769832489,-480.32996169,0.00014845,2]
[392647361,1761769832498,-151.0,0.00014845,2]
[392647362,1761769832507,-151.0,0.00014845,2]
[392647363,1761769832516,-151.0,0.00014845,2]
[392647364,1761769832525,-151.0,0.00014845,2]
[392647365,1761769832534,-151.0,0.00014845,2]
[392647366,1761769832543,-151.0,0.00014845,2]
[392647367,1761769832552,-151.0,0.00014845,2]
[392647368,1761769832562,-151.0,0.00014845,2]
[392647369,1761769832571,-500.0,0.00014853,2]
[392647370,1761769832580,-190.90497722,0.00014853,2]
[392647371,1761769832589,-150.0,0.00014853,2]
[392647372,1761769832599,-193197.111,0.00014854,2]
[392647373,1761769832608,-305.557,0.0001487,2]
[392647374,1761769832621,-904.0,0.0001487,2]
[392647375,1761769832630,-6624.0,0.0001487,2]
[392647376,1761769832639,-820.0,0.0001487,2]
[392647377,1761769832649,-3492.0,0.0001487,2]
[392647378,1761769832658,-163.55430187,0.00014873,2]
[392647379,1761769832668,-500.0,0.0001488,2]
[392647380,1761769832677,-200.0,0.0001488,2]
[392647381,1761769832689,-163.55430187,0.00014882,2]
[392647382,1761769832698,-163.55430187,0.00014891,2]
[392647383,1761769832709,-909.204,0.00014898,2]
[392647384,1761769832719,-500.0,0.00014898,2]
[392647385,1761769832728,-500.0,0.00014898,2]
[392647386,1761769832738,-500.0,0.00014899,2]
[392647387,1761769832747,-500.0,0.00014899,2]
[392647388,1761769832756,-500.0,0.00014899,2]
[392647389,1761769832765,-344.77223619,0.00014899,2]
[392647390,1761769832775,-587.31,0.00014899,2]
[392647391,1761769832784,-500.0,0.00014899,2]
[392647392,1761769832794,-3448.36184009,0.00014899,2]
[392647393,1761769832803,-3448.36184006,0.00014899,2]
[392647394,1761769832812,-3448.36184006,0.00014899,2]
[392647395,1761769832822,-3448.36184006,0.00014899,2]
[392647396,1761769832831,-3448.36184006,0.00014899,2]
[392647397,1761769832840,-160.88,0.000149,2]
[392647398,1761769832850,-3448.36184006,0.000149,2]
[392647399,1761769832860,-3034.42466336,0.000149,2]
[392647619,1761769837449,-500.0,0.00013989,2]
[392647621,1761769837459,-266.68715685,0.00013989,2]
[392647634,1761769837561,-233.31284315,0.00013989,2]
[392647636,1761769837570,-500.0,0.00013989,2]
[392647638,1761769837579,-500.0,0.00013989,2]
[392647639,1761769837588,-500.0,0.00013989,2]
[392647642,1761769837597,-584.80383303,0.00013989,2]
[392647643,1761769837607,-413.9371767,0.000149,2]
[392647645,1761769837616,-3448.36184006,0.000149,2]
[392647648,1761769837626,-3448.36184006,0.000149,2]
[392647650,1761769837636,-4411.24363688,0.000149,2]
[392647652,1761769837645,-3448.36184006,0.000149,2]
[392647654,1761769837654,-165.6269197,0.000149,2]
[392647656,1761769837663,-163.55430187,0.000149,2]
[392647658,1761769837672,-500.0,0.00014973,2]
[392647660,1761769837682,-500.0,0.00014973,2]
[392647662,1761769837691,-500.0,0.00014973,2]
[392647664,1761769837700,-171.43322433,0.00014973,2]
[392647666,1761769837710,-500.0,0.00014973,2]
[392647668,1761769837719,-503.91202727,0.00014973,2]
[392647670,1761769837728,-500.0,0.00014973,2]
[392647672,1761769837738,-526.86401143,0.00014973,2]
[392647674,1761769837747,-500.0,0.00014973,2]
[392647676,1761769837756,-502.67293591,0.00014973,2]
[392647678,1761769837765,-500.0,0.00014973,2]
[392647680,1761769837774,-500.0,0.00014973,2]
[392647682,1761769837784,-500.0,0.00014973,2]
[392647684,1761769837792,-500.0,0.00014973,2]
[392647686,1761769837801,-503.13226371,0.00014973,2]
[392647688,1761769837810,-500.0,0.00014973,2]
[392647690,1761769837819,-217.68277019,0.00014973,2]
[392647692,1761769837828,-500.0,0.00014973,2]
[392647694,1761769837837,-500.0,0.00014973,2]
[392647696,1761769837846,-500.0,0.00014973,2]
[392647698,1761769837855,-500.0,0.00014973,2]
[392647700,1761769837864,-500.0,0.00014973,2]
[392647702,1761769837874,-500.0,0.00014973,2]
[392647704,1761769837886,-500.0,0.00014973,2]
[392647706,1761769837895,-500.0,0.00014973,2]
[392647708,1761769837904,-500.0,0.00014973,2]
[392647710,1761769837914,-500.0,0.00014973,2]
[392647712,1761769837923,-718.91,0.00014973,2]
[392647714,1761769837933,-2477.2681912,0.00014979,2]
[392647716,1761769837943,-650.0156299,0.00014979,2]
[392647718,1761769837951,-166.27,0.00014986,2]
[392647720,1761769837960,-25262.70025571,0.00014987,2]
[392647723,1761769837976,-3189.17951655,0.00014987,2]
[392647886,1761769839503,-2082.34425443,0.0001487,2]
[392647888,1761769839515,-488.68280004,0.0001487,2]
[392647901,1761769839623,-846.97294553,0.0001487,2]
[392647903,1761769839632,-2489.15576317,0.00014987,2]
[392647905,1761769839643,-292.0271266,0.00014987,2]
[392647909,1761769839670,-2352.88817937,0.00014987,2]
[392647911,1761769839679,-4170.61070311,0.00014987,2]
[392647913,1761769839691,-732.71057402,0.00014987,2]
[392647916,1761769839702,-8529.82613065,0.00014987,2]
[392647919,1761769839728,-15385.44361882,0.00014987,2]
[392647921,1761769839738,-262.43665312,0.0001499,2]
[392647923,1761769839746,-262.43665312,0.0001499,2]
[392647925,1761769839755,-262.43665312,0.0001499,2]
[392647927,1761769839764,-279.49826101,0.00014999,2]
[392647929,1761769839773,-500.0,0.00014999,2]
[392647931,1761769839782,-500.0,0.00014999,2]
[392647933,1761769839791,-500.0,0.00014999,2]
[392647935,1761769839800,-500.0,0.00014999,2]
[392647938,1761769839810,-500.0,0.00014999,2]
[392647940,1761769839821,-500.0,0.00014999,2]
[392647942,1761769839831,-500.0,0.00014999,2]
[392647944,1761769839840,-244.82,0.00014999,2]
[392647945,1761769839849,-249.80884496,0.00014999,2]
[392647948,1761769839858,-500.0,0.00014999,2]
[392647950,1761769839868,-500.0,0.00014999,2]
[392647951,1761769839877,-500.0,0.00014999,2]
[392647954,1761769839887,-500.0,0.00014999,2]
[392647955,1761769839896,-421.16123923,0.00014999,2]
[392647957,1761769839906,-2008.0,0.00015,2]
[392647959,1761769839915,-3462.52026238,0.00015,2]
[392647969,1761769840000,-111.48536687,0.00015,2]
[392648220,1761769842491,-335.77409857,0.0001477,2]
[392648222,1761769842500,-427774.5295339,0.00015,2]
[392648224,1761769842511,-77207.57525237,0.00015,2]
[392648243,1761770002307,203.594551,0.00026523,120]
[392648413,1761770599987,500.0,0.00025913,120]
[392648414,1761770708208,150.0,0.00013488,2]
[392648415,1761770711993,283.18139762,0.00013488,2]
[392648416,1761770715314,150.0,0.00013488,2]
[392648417,1761770715382,150.0,0.00013488,2]
[392648418,1761770715508,150.0,0.00013488,2]
[392648419,1761770718879,150.0,0.00013488,2]
[392648421,1761770722234,150.0,0.00013488,2]
[392648422,1761770727602,150.0,0.00013488,2]
[392648423,1761770729123,150.0,0.00013488,2]
[392648429,1761770836136,999.0,0.00013707,3]
[392648450,1761770885060,-165.03,0.00013699,2]
[392648451,1761770885083,-150.0,0.00013704,2]
[392648452,1761770885107,-300.0,0.00013787,2]
[392648453,1761770885130,-3792.94,0.00013848,2]
[392648454,1761770885154,-592.03,0.00013875,2]
[392648455,1761770897756,-300.0,0.00013701,2]
[392648456,1761770897780,-150.0,0.0001376,2]
[392648457,1761770897804,-300.0,0.00013783,2]
[392648458,1761770897826,-300.0,0.00013783,2]
[392648459,1761770897849,-5005.42,0.00013799,2]
[392648460,1761770897871,-607.97,0.00013875,2]
[392648461,1761770897893,-6934.98,0.00013876,2]
[392648462,1761770897917,-165.03,0.00013884,2]
[392648463,1761770897939,-1200.0,0.00013926,2]
[392648464,1761770897960,-1000.0,0.00013927,2]
[392648465,1761770897984,-165.03,0.00014068,2]
[392648466,1761770898007,-578.20924308,0.00014248,2]
[392648467,1761770910007,-165.03,0.00014253,2]
[392648468,1761770910030,-165.03,0.00014438,2]
[392648469,1761770910053,-300.0,0.00014621,2]
[392648470,1761770910079,-165.03,0.00014623,2]
[392648471,1761770910101,-892.67338722,0.0001464,2]
[392648472,1761770910122,-150.0,0.00014719,2]
[392648473,1761770910143,-151.0,0.00014745,2]
[392648474,1761770910166,-277.35679052,0.00014745,2]
[392648475,1761770910187,-150.0,0.00014752,2]
[392648476,1761770910212,-500.0,0.00014753,2]
[392648477,1761770910237,-500.0,0.00014753,2]
[392648478,1761770910260,-500.0,0.00014753,2]
[392648479,1761770910290,-500.0,0.00014753,2]
[392648480,1761770910317,-500.0,0.00014753,2]
[392648481,1761770910341,-500.0,0.00014753,2]
[392648482,1761770910365,-500.0,0.00014753,2]
[392648483,1761770910389,-500.0,0.00014753,2]
[392648484,1761770910413,-500.0,0.00014753,2]
[392648485,1761770910438,-358.06336536,0.00014753,2]
[392648486,1761770910462,-500.0,0.00014753,2]
[392648487,1761770910486,-225.8164569,0.00014753,2]
[392648488,1761770920285,-1006.0677,0.00014754,2]
[392648489,1761770920308,-1000.0,0.00014754,2]
[392648490,1761770920330,-221.53471527,0.00014765,2]
[392648491,1761770920355,-302.19668865,0.00014769,2]
[392648492,1761770920379,-302.19668864,0.00014784,2]
[392648493,1761770920406,-500.0,0.0001479,2]
[392648494,1761770920431,-500.0,0.0001479,2]
[392648495,1761770920456,-500.0,0.0001479,2]
[392648496,1761770920480,-632.57152533,0.0001479,2]
[392648497,1761770920502,-200.0,0.00014791,2]
[392648498,1761770920524,-250.0,0.00014791,2]
[392648499,1761770920546,-151.0,0.00014791,2]
[392648500,1761770920568,-250.0,0.00014791,2]
[392648501,1761770920591,-151.0,0.00014791,2]
[392648502,1761770920612,-500.0,0.00014791,2]
[392648503,1761770920634,-250.0,0.00014791,2]
[392648504,1761770920656,-151.0,0.00014791,2]
[392648505,1761770920677,-721.12765535,0.00014791,2]
[392648506,1761770920698,-500.0,0.00014791,2]
[392648507,1761770920719,-250.0,0.00014791,2]
[392648508,1761770920967,-151.0,0.00014791,2]
[392648509,1761770920989,-500.0,0.00014791,2]
[392648510,1761770921011,-250.0,0.00014791,2]
[392648511,1761770921033,-151.0,0.00014791,2]
[392648512,1761770921056,-500.0,0.00014791,2]
[392648513,1761770921077,-250.0,0.00014791,2]
[392648514,1761770921098,-151.0,0.00014791,2]
[392648515,1761770921120,-500.0,0.00014791,2]
[392648516,1761770921143,-250.0,0.00014791,2]
[392648517,1761770921164,-151.0,0.00014791,2]
[392648518,1761770921185,-500.0,0.00014791,2]
[392648519,1761770921206,-250.0,0.00014791,2]
[392648520,1761770921228,-151.0,0.00014791,2]
[392648521,1761770921249,-250.0,0.00014791,2]
[392648522,1761770921273,-500.0,0.00014791,2]
[392648523,1761770921294,-151.0,0.00014791,2]
[392648524,1761770921317,-500.0,0.00014791,2]
[392648525,1761770921339,-151.0,0.00014791,2]
[392648526,1761770921361,-500.0,0.00014791,2]
[392648527,1761770921384,-151.0,0.00014791,2]
[392648528,1761770921406,-500.0,0.00014791,2]
[392648529,1761770921430,-151.0,0.00014791,2]
[392648530,1761770921453,-500.0,0.00014791,2]
[392648531,1761770921475,-250.0,0.00014791,2]
[392648532,1761770921497,-250.0,0.00014791,2]
[392648533,1761770921520,-250.0,0.00014791,2]
[392648534,1761770921544,-500.0,0.00014791,2]
[392648535,1761770921567,-250.0,0.00014791,2]
[392648536,1761770921590,-500.0,0.00014791,2]
[392648537,1761770921612,-250.0,0.00014791,2]
[392648538,1761770921634,-500.0,0.00014791,2]
[392648539,1761770921656,-250.0,0.00014791,2]
[392648540,1761770921679,-500.0,0.00014791,2]
[392648541,1761770921701,-250.0,0.00014791,2]
[392648542,1761770921724,-500.0,0.00014791,2]
[392648543,1761770921745,-250.0,0.00014791,2]
[392648544,1761770921770,-151.0,0.00014791,2]
[392648545,1761770921795,-500.0,0.00014791,2]
[392648546,1761770921816,-151.0,0.00014791,2]
[392648547,1761770921842,-250.0,0.00014791,2]
[392648548,1761770921867,-500.0,0.00014791,2]
[392648549,1761770921893,-151.0,0.00014791,2]
[392648550,1761770921916,-500.0,0.00014791,2]
[392648551,1761770921942,-500.0,0.00014791,2]
[392648552,1761770921966,-500.0,0.00014791,2]
[392648553,1761770921993,-151.0,0.00014791,2]
[392648554,1761770922017,-500.0,0.00014791,2]
[392648555,1761770922042,-500.0,0.00014791,2]
[392648556,1761770922065,-151.0,0.00014791,2]
[392648557,1761770922087,-500.0,0.00014791,2]
[392648558,1761770922109,-500.0,0.00014791,2]
[392648559,1761770922131,-574.12855637,0.00014791,2]
[392648560,1761770922152,-500.0,0.00014791,2]
[392648561,1761770922174,-158.30094289,0.00014791,2]
[392648562,1761770922196,-500.0,0.00014791,2]
[392648563,1761770922218,-500.0,0.00014791,2]
[392648564,1761770922239,-500.0,0.00014791,2]
[392648565,1761770922261,-500.0,0.00014791,2]
[392648566,1761770922288,-500.0,0.00014791,2]
[392648567,1761770922310,-500.0,0.00014791,2]
[392648568,1761770922332,-500.0,0.00014791,2]
[392648569,1761770922354,-500.0,0.00014791,2]
[392648570,1761770922376,-500.0,0.00014791,2]
[392648571,1761770922397,-500.0,0.00014791,2]
[392648572,1761770922420,-500.0,0.00014791,2]
[392648573,1761770922442,-500.0,0.00014791,2]
[392648574,1761770922464,-500.0,0.00014791,2]
[392648575,1761770922487,-500.0,0.00014791,2]
[392648576,1761770922509,-500.0,0.00014791,2]
[392648577,1761770922533,-250.0,0.00014791,2]
[392648578,1761770922555,-500.0,0.00014791,2]
[392648579,1761770922577,-250.0,0.00014791,2]
[392648580,1761770922599,-500.0,0.00014791,2]
[392648581,1761770922621,-250.0,0.00014791,2]
[392648582,1761770922644,-250.0,0.00014791,2]
[392648583,1761770922667,-250.0,0.00014791,2]
[392648584,1761770922690,-250.0,0.00014791,2]
[392648585,1761770922714,-250.0,0.00014791,2]
[392648586,1761770922736,-250.0,0.00014791,2]
[392648587,1761770922759,-250.0,0.00014791,2]
[392648588,1761770922782,-250.0,0.00014791,2]
[392648589,1761770922804,-250.0,0.00014791,2]
[392648590,1761770922829,-250.0,0.00014791,2]
[392648591,1761770922852,-250.0,0.00014791,2]
[392648592,1761770922877,-250.0,0.00014791,2]
[392648593,1761770922900,-250.0,0.00014791,2]
[392648594,1761770922923,-250.0,0.00014791,2]
[392648595,1761770922944,-250.0,0.00014791,2]
[392648596,1761770922966,-250.0,0.00014791,2]
[392648597,1761770922988,-250.0,0.00014791,2]
[392648598,1761770923010,-500.0,0.00014791,2]
[392648599,1761770923032,-250.0,0.00014791,2]
[392648600,1761770923055,-500.0,0.00014791,2]
[392648601,1761770923077,-250.0,0.00014791,2]
[392648602,1761770923099,-250.0,0.00014791,2]
[392648603,1761770923122,-500.0,0.00014791,2]
[392648604,1761770923145,-250.0,0.00014791,2]
[392648605,1761770923169,-250.0,0.00014791,2]
[392648606,1761770923191,-500.0,0.00014791,2]
[392648607,1761770923214,-250.0,0.00014791,2]
[392648608,1761770923237,-500.0,0.00014791,2]
[392648609,1761770923261,-250.0,0.00014791,2]
[392648610,1761770923289,-250.0,0.00014791,2]
[392648611,1761770923314,-500.0,0.00014791,2]
[392648612,1761770923337,-250.0,0.00014791,2]
[392648613,1761770923369,-250.0,0.00014791,2]
[392648614,1761770923398,-500.0,0.00014791,2]
[392648615,1761770923422,-250.0,0.00014791,2]
[392648616,1761770923452,-250.0,0.00014791,2]
[392648617,1761770923481,-500.0,0.00014791,2]
[392648618,1761770923507,-220.0,0.00014791,2]
[392648619,1761770923535,-250.0,0.00014791,2]
[392648620,1761770923563,-500.0,0.00014791,2]
[392648621,1761770923588,-220.0,0.00014791,2]
[392648622,1761770923615,-322.6107,0.00014791,2]
[392648623,1761770923643,-500.0,0.00014791,2]
[392648624,1761770923670,-250.0,0.00014791,2]
[392648625,1761770923697,-500.0,0.00014791,2]
[392648626,1761770923725,-302.19668864,0.00014798,2]
[392648627,1761770923753,-0.06813886,0.000148,2]
[392648628,1761770934058,-500.0,0.0001479,2]
[392648629,1761770934084,-13199.67656114,0.000148,2]
[392648630,1761770934109,-302.19668864,0.00014813,2]
[392648631,1761770934133,-302.19668864,0.00014827,2]
[392648632,1761770934158,-302.19668864,0.00014842,2]
[392648633,1761770934181,-500.0,0.00014849,2]
[392648634,1761770934205,-241.41406598,0.00014849,2]
[392648635,1761770934229,-283.70835404,0.00014849,2]
[392648636,1761770934256,-398.41553688,0.00014849,2]
[392648637,1761770934282,-133970.19541604,0.0001485,2]
[392648638,1761770954976,-300.0,0.00014849,2]
[392648639,1761770955000,-300.0,0.0001485,2]
[392648640,1761770955022,-11333.02241873,0.0001485,2]
[392648641,1761770955046,-302.19668864,0.00014856,2]
[392648642,1761770955070,-300.0,0.00014859,2]
[392648643,1761770955093,-500.0,0.00014869,2]
[392648644,1761770955116,-500.0,0.00014869,2]
[392648645,1761770955138,-500.0,0.00014869,2]
[392648646,1761770955161,-3492.0,0.0001487,2]
[392648647,1761770955185,-573.0,0.0001487,2]
[392648648,1761770955210,-820.0,0.0001487,2]
[392648649,1761770955232,-606.0,0.0001487,2]
[392648650,1761770955254,-3418.0,0.0001487,2]
[392648651,1761770955280,-266.67,0.0001487,2]
[392648652,1761770955302,-566.313,0.0001487,2]
[392648653,1761770955326,-983.622,0.0001487,2]
[392648654,1761770955349,-1186.0,0.0001487,2]
[392648655,1761770955681,-904.0,0.0001487,2]
[392648656,1761770955711,-302.19668864,0.00014871,2]
[392648657,1761770955733,-200.0,0.0001488,2]
[392648658,1761770955758,-302.19668864,0.00014885,2]
[392648659,1761770955783,-727.363,0.00014899,2]
[392648660,1761770955807,-856.61772314,0.000149,2]
[392648661,1761770955833,-302.19668864,0.000149,2]
[392648662,1761770955855,-218.0432887,0.000149,2]
[392648663,1761770955879,-1558.57720443,0.000149,2]
[392648664,1761770959541,527.5069,0.00014799,2]
[392648665,1761770963284,500.0,0.0001479,2]
[392648666,1761770983841,190.42190917,0.000149,2]
[392648678,1761771031711,-500.0,0.0001479,2]
[392648679,1761771031721,-500.0,0.0001479,2]
[392648680,1761771031730,-150.0,0.0001487,2]
[392648681,1761771031739,-150.0,0.0001487,2]
[392648682,1761771031748,-157.01,0.0001487,2]
[392648683,1761771031758,-241.29182732,0.00014875,2]
[392648684,1761771031799,-58.70817268,0.00014875,2]
[392648685,1761771031808,-300.0,0.00014937,2]
[392648686,1761771031817,-500.0,0.00014959,2]
[392648687,1761771031827,-300.0,0.00014972,2]
[392648688,1761771031836,-300.0,0.00014972,2]
[392648689,1761771031845,-1200.0,0.00014972,2]
[392648690,1761771031854,-500.0,0.00014973,2]
[392648691,1761771031863,-614.87120301,0.00014973,2]
[392648692,1761771031872,-500.0,0.00014973,2]
[392648693,1761771031881,-218.58414688,0.00014973,2]
[392648694,1761771031890,-500.0,0.00014973,2]
[392648695,1761771031899,-500.0,0.00014973,2]
[392648696,1761771031909,-500.0,0.00014973,2]
[392648697,1761771031919,-502.61782076,0.00014973,2]
[392648698,1761771031928,-505.21002872,0.00014973,2]
[392648699,1761771031937,-500.0,0.00014973,2]
[392648700,1761771031947,-500.0,0.00014973,2]
[392648702,1761771031955,-500.0,0.00014973,2]
[392648704,1761771031965,-500.0,0.00014973,2]
[392648706,1761771031974,-453.31092803,0.00014973,2]
[392648708,1761771031983,-500.0,0.00014973,2]
[392648710,1761771031992,-500.0,0.00014973,2]
[392648712,1761771032001,-387.51376257,0.00014973,2]
[392648714,1761771032010,-500.0,0.00014973,2]
[392648716,1761771032019,-500.0,0.00014973,2]
[392648717,1761771032028,-500.0,0.00014973,2]
[392648719,1761771032037,-256.07562659,0.0001499,2]
[392648721,1761771032046,-256.07562659,0.0001499,2]
[392648723,1761771032056,-256.07562659,0.0001499,2]
[392648725,1761771032069,-14801.10782092,0.00014997,2]
[392648727,1761771032082,-335.349535,0.00014997,2]
[392648729,1761771032093,-29141.83220998,0.00014997,2]
[392648731,1761771032102,-20618.77437851,0.00014997,2]
[392648745,1761771032189,-8432.47427637,0.00014997,2]
[392648757,1761771037607,-168.98984618,0.00014996,2]
[392648758,1761771037617,-198.59584783,0.00014996,2]
[392648759,1761771037628,-628.89087581,0.00014996,2]
[392648760,1761771037637,-236.9523917,0.00014996,2]
[392648761,1761771037646,-1026.27727552,0.00014997,2]
[392648762,1761771037658,-7691.80767413,0.00014997,2]
[392648763,1761771037671,-5775.27917661,0.00014997,2]
[392648764,1761771037682,-3675.8500394,0.00014997,2]
[392648765,1761771037693,-2082.30218261,0.00014997,2]
[392648766,1761771037725,-641.63726552,0.00014997,2]
[392648767,1761771037822,-1017.87552807,0.00014997,2]
[392649045,1761771041848,-558.0,0.0001487,2]
[392649046,1761771041857,-5548.62903926,0.00014997,2]
[392649047,1761771041867,-4879.6760546,0.00014997,2]
[392649048,1761771041877,-6318.000023,0.00014997,2]
[392649049,1761771041888,-6493.63435963,0.00014997,2]
[392649050,1761771042113,-353.69976327,0.00014997,2]
[392649051,1761771042128,-353.5933337,0.00014997,2]
[392649052,1761771042137,-115.90349649,0.00014999,2]
[392649053,1761771042178,-1005.42651576,0.00014999,2]
[392649054,1761771042188,-500.0,0.00014999,2]
[392649055,1761771042198,-89.61593324,0.00014999,2]
[392649056,1761771042208,-410.38406676,0.00014999,2]
[392649057,1761771042217,-500.0,0.00014999,2]
[392649058,1761771042226,-2.53932307,0.00014999,2]
[392649060,1761771043195,-388.70067693,0.00014999,2]
[392649061,1761771043205,-131.5052551,0.00014999,2]
[392649062,1761771043255,-368.4947449,0.00014999,2]